bitfinex/quotes_SOLUSD_20250731
["timestamp","ask_amount","ask_price","bid_price","bid_amount"]
[1753959444170,18.8591898,181.82,181.81,1e-08]
[1753959444491,62.82783123,181.82,181.81,1e-08]
[1753959444653,23.76783123,181.82,181.81,1e-08]
[1753959444857,60.40166776,181.82,181.81,1e-08]
[1753959446784,62.16932441,181.82,181.81,1e-08]
[1753959450062,57.2591898,181.82,181.81,1e-08]
[1753959450288,62.16932441,181.82,181.81,1e-08]
[1753959450499,57.2591898,181.82,181.81,1e-08]
[1753959450690,62.16932441,181.82,181.81,1e-08]
[1753959452087,57.2591898,181.82,181.81,1e-08]
[1753959452289,62.16932441,181.82,181.81,1e-08]
[1753959452587,57.2591898,181.82,181.81,1e-08]
[1753959452787,77.6105488,181.82,181.81,1e-08]
[1753959457018,78.2905488,181.82,181.81,1e-08]
[1753959457170,78.30116052,181.82,181.81,1e-08]
[1753959459296,78.33116052,181.82,181.81,1e-08]
[1753959460993,74.25229776,181.82,181.81,1e-08]
[1753959461193,78.33495802,181.82,181.81,1e-08]
[1753959463075,78.33606712,181.82,181.81,1e-08]
[1753959464080,74.0308857,181.82,181.81,1e-08]
[1753959464282,81.0336697,181.82,181.81,1e-08]
[1753959464792,26.0,181.79,181.71,5.63013461]
[1753959465103,4.91013461,181.75,181.71,0.72]
[1753959465273,38.36,181.74,181.71,0.72]
[1753959465777,38.36,181.74,181.71,5.63013461]
[1753959465971,38.36,181.74,181.72,0.72]
[1753959466579,39.04,181.74,181.7,4.91013461]
[1753959466900,39.04,181.74,181.7,5.63013461]
[1753959467199,5.50266879,181.73,181.7,5.63013461]
[1753959467397,38.36,181.72,181.7,5.63013461]
[1753959467773,38.36,181.72,181.7,4.91013461]
[1753959468001,38.36,181.72,181.71,0.72]
[1753959468191,43.8629716,181.72,181.69,2.3323]
[1753959468391,43.8629716,181.72,181.69,6.52243461]
[1753959468590,43.8629716,181.72,181.7,0.72]
[1753959472204,38.36,181.72,181.7,0.72]
[1753959472803,38.36,181.72,181.69,6.52243461]
[1753959472984,38.36,181.72,181.71,0.71]
[1753959474691,38.36,181.72,181.7,5.62013461]
[1753959476207,38.36,181.71,181.7,5.62013461]
[1753959476585,38.36,181.71,181.7,0.71]
[1753959476786,38.36,181.71,181.7,3.8549361]
[1753959477512,5.50267965,181.73,181.7,3.8549361]
[1753959477698,38.34,181.72,181.7,3.8549361]
[1753959479419,38.34,181.72,181.7,3.1449361]
[1753959479714,44.52304051,181.72,181.69,5.4672361]
[1753959480517,6.18304051,181.72,181.69,5.4672361]
[1753959480693,38.34,181.71,181.69,5.4672361]
[1753959480895,38.34,181.71,181.7,3.1449361]
[1753959481691,38.34,181.71,181.69,1.6723]
[1753959482115,38.34,181.71,181.69,4.8172361]
[1753959482715,38.34,181.71,181.7,3.1449361]
[1753959483920,38.34,181.71,181.69,1.6723]
[1753959484216,38.34,181.71,181.69,4.8172361]
[1753959486822,38.34,181.71,181.69,5.5272361]
[1753959487316,38.34,181.71,181.69,4.8172361]
[1753959487695,39.02,181.71,181.69,4.8172361]
[1753959488222,44.52343012,181.71,181.69,4.8172361]
[1753959488414,39.02,181.71,181.69,4.8172361]
[1753959490634,0.68,181.7,181.69,0.06]
[1753959492719,6.18357732,181.7,181.69,0.06]
[1753959496603,9.32851342,181.7,181.69,0.06]
[1753959497120,6.18357732,181.7,181.69,0.06]
[1753959497502,13.00080064,181.7,181.69,0.06]
[1753959498210,9.32851342,181.7,181.69,0.06]
[1753959498515,13.00059428,181.7,181.69,0.06]
[1753959500223,17.07994342,181.7,181.69,0.06]
[1753959500604,13.93500732,181.7,181.69,0.06]
[1753959500803,17.07994342,181.7,181.69,0.06]
[1753959501209,33.86462739,181.7,181.69,0.06]
[1753959501521,17.07994342,181.7,181.69,0.06]
[1753959501726,55.37994342,181.7,181.69,0.06]
[1753959504118,13.93500732,181.7,181.69,0.06]
[1753959504420,77.57500732,181.7,181.69,0.06]
[1753959504605,78.26500732,181.7,181.69,0.06]
[1753959506924,78.26312155,181.7,181.69,0.06]
[1753959513909,81.40805765,181.7,181.69,0.06]
[1753959514738,81.41098155,181.7,181.69,0.06]
[1753959518035,55.41098155,181.7,181.69,0.06]
[1753959523221,52.26604545,181.7,181.69,0.06]
[1753959523525,54.66098155,181.7,181.69,0.06]
[1753959523731,55.35098155,181.7,181.69,0.06]
[1753959524353,26.0,181.67,181.66,0.3213573]
[1753959524529,7.75293142,181.67,181.66,3.4662934]
[1753959524737,84.93962007,181.67,181.66,0.3213573]
[1753959524935,92.69219255,181.67,181.66,1e-08]
[1753959525260,77.61705863,181.67,181.66,1e-08]
[1753959525553,78.30705863,181.67,181.66,1e-08]
[1753959526328,78.30635769,181.67,181.66,1e-08]
[1753959529153,81.45129379,181.67,181.66,1e-08]
[1753959531228,78.30635769,181.67,181.66,1e-08]
[1753959531740,77.61635769,181.67,181.66,1e-08]
[1753959533036,39.25635769,181.67,181.66,1e-08]
[1753959533356,77.59635769,181.67,181.66,1e-08]
[1753959534236,39.25635769,181.67,181.66,1e-08]
[1753959534430,77.59635769,181.67,181.66,1e-08]
[1753959535464,77.60117849,181.67,181.66,1e-08]
[1753959538446,77.6028758,181.67,181.66,1e-08]
[1753959539460,78.2928758,181.67,181.66,1e-08]
[1753959540661,77.6028758,181.67,181.66,1e-08]
[1753959541863,78.2928758,181.67,181.66,1e-08]
[1753959542660,72.09838965,181.67,181.66,1e-08]
[1753959542863,33.75838965,181.67,181.66,1e-08]
[1753959543064,72.07838965,181.67,181.66,1e-08]
[1753959543643,77.5828758,181.67,181.66,1e-08]
[1753959545075,77.58903914,181.67,181.66,1e-08]
[1753959545272,72.08455299,181.67,181.66,1e-08]
[1753959549067,77.58903914,181.67,181.66,1e-08]
[1753959549269,35.17676934,181.67,181.66,1e-08]
[1753959549573,77.56962542,181.67,181.66,1e-08]
[1753959552064,78.25962542,181.67,181.66,1e-08]
[1753959552264,39.95962542,181.67,181.66,1e-08]
[1753959552450,78.23962542,181.67,181.66,1e-08]
[1753959553863,77.54962542,181.67,181.66,1e-08]
[1753959554065,78.23962542,181.67,181.66,1e-08]
[1753959554652,74.14676934,181.67,181.66,1e-08]
[1753959555451,78.24003093,181.67,181.66,1e-08]
[1753959556576,78.2401632,181.67,181.66,1e-08]
[1753959556787,78.24032933,181.67,181.66,1e-08]
[1753959557153,78.22032933,181.67,181.66,1e-08]
[1753959558577,82.12526533,181.67,181.66,1e-08]
[1753959559846,82.1263278,181.67,181.66,1e-08]
[1753959568988,81.4163278,181.67,181.66,1e-08]
[1753959569986,81.4163278,181.67,181.66,0.06000001]
[1753959570187,82.1163278,181.67,181.66,0.06000001]
[1753959572280,82.1325242,181.67,181.66,0.06000001]
[1753959572787,81.4625242,181.67,181.66,0.06000001]
[1753959572986,43.2225242,181.67,181.66,0.06000001]
[1753959573188,81.4625242,181.67,181.66,0.06000001]
[1753959573392,43.2225242,181.67,181.66,0.06000001]
[1753959573773,81.4625242,181.67,181.66,0.06000001]
[1753959574089,77.5575882,181.67,181.66,0.06000001]
[1753959577787,77.56236418,181.67,181.66,0.06000001]
[1753959578992,72.03787803,181.67,181.66,3.87493611]
[1753959579297,72.03787803,181.67,181.66,3.20493611]
[1753959581099,72.03787803,181.67,181.66,0.06000001]
[1753959582192,78.21236418,181.67,181.66,0.06000001]
[1753959582392,7.81787803,181.67,181.66,3.20493611]
[1753959582586,38.25,181.67,181.66,3.87493611]
[1753959582785,41.93970236,181.67,181.66,3.87493611]
[1753959583185,41.93970236,181.67,181.66,0.06000001]
[1753959583391,41.93970236,181.67,181.66,3.20493611]
[1753959584018,41.93970236,181.67,181.66,0.06000001]
[1753959584220,41.93970236,181.67,181.66,3.20493611]
[1753959588922,42.60970236,181.67,181.66,0.06000001]
[1753959589230,52.2110935,181.67,181.66,0.06000001]
[1753959590834,81.3560296,181.67,181.66,0.06000001]
[1753959591130,84.5009656,181.67,181.66,0.06000001]
[1753959593540,81.3560295,181.67,181.66,0.06000001]
[1753959593722,84.5009656,181.67,181.66,0.06000001]
[1753959598319,80.40406061,181.67,181.66,0.06000001]
[1753959598643,81.3546527,181.67,181.66,0.06000001]
[1753959598841,84.4995888,181.67,181.66,0.06000001]
[1753959599843,81.3546527,181.67,181.66,0.06000001]
[1753959600030,84.4995888,181.67,181.66,0.06000001]
[1753959600229,81.3546527,181.67,181.66,0.06000001]
[1753959600544,84.4995888,181.67,181.66,0.06000001]
[1753959601022,84.49933772,181.67,181.66,0.06000001]
[1753959601230,81.35440162,181.67,181.66,0.06000001]
[1753959601427,84.49933772,181.67,181.66,0.06000001]
[1753959602438,83.82933772,181.67,181.66,0.06000001]
[1753959602744,80.66440162,181.67,181.66,0.72000001]
[1753959602927,80.66440162,181.67,181.66,0.06000001]
[1753959603124,36.95991547,181.67,181.66,0.06000001]
[1753959603325,36.95991547,181.67,181.66,3.20493611]
[1753959603326,72.01497947,181.67,181.66,3.20493611]
[1753959604035,77.51946562,181.67,181.66,3.20493611]
[1753959604545,72.01497947,181.67,181.66,3.20493611]
[1753959604926,33.81497947,181.67,181.66,3.20493611]
[1753959605122,72.01497947,181.67,181.66,3.86493611]
[1753959605339,67.91970236,181.67,181.66,3.86493611]
[1753959605824,67.91970236,181.67,181.66,3.20493611]
[1753959606030,67.91970236,181.67,181.66,3.86493611]
[1753959606445,41.91970236,181.67,181.66,3.86493611]
[1753959607145,41.91970236,181.67,181.66,3.20493611]
[1753959607932,41.91970236,181.67,181.66,3.86493611]
[1753959608847,0.03,181.67,181.66,9.36972527]
[1753959609035,38.23,181.67,181.66,3.20493611]
[1753959609442,38.93,181.67,181.66,3.20493611]
[1753959609639,38.23,181.67,181.66,3.20493611]
[1753959610952,0.03,181.67,181.66,3.20493611]
[1753959611142,38.23,181.67,181.66,3.20493611]
[1753959612354,38.23,181.67,181.66,0.06000001]
[1753959612543,38.23,181.67,181.66,3.20493611]
[1753959613135,38.23,181.67,181.66,0.06000001]
[1753959613459,38.23,181.67,181.66,3.20493611]
[1753959614757,0.03,181.67,181.66,3.20493611]
[1753959614959,38.23,181.67,181.66,3.20493611]
[1753959616848,0.03,181.67,181.66,3.20493611]
[1753959617050,38.23,181.67,181.66,3.86493611]
[1753959617963,0.03,181.67,181.66,3.86493611]
[1753959618153,38.23,181.67,181.66,3.86493611]
[1753959619853,38.23,181.67,181.66,3.20493611]
[1753959622863,38.23,181.67,181.66,8.70972527]
[1753959623047,38.23,181.67,181.66,9.36972527]
[1753959623666,38.23,181.67,181.66,8.70972527]
[1753959623866,38.23,181.67,181.66,9.36972527]
[1753959624466,38.23,181.67,181.66,8.70972527]
[1753959625850,38.23,181.67,181.66,9.36972527]
[1753959626052,38.23,181.67,181.66,8.70972527]
[1753959627766,38.23,181.67,181.66,9.36972527]
[1753959630571,38.23,181.67,181.66,6.22478917]
[1753959630773,38.23,181.67,181.66,9.36972527]
[1753959632658,38.21,181.67,181.66,9.36972527]
[1753959633458,38.21,181.67,181.66,8.70972527]
[1753959637764,38.21,181.67,181.66,9.36972527]
[1753959640275,38.21,181.67,181.66,6.22478917]
[1753959640481,38.21,181.67,181.66,9.36972527]
[1753959641671,38.93,181.67,181.66,0.06000001]
[1753959641888,44.43448615,181.67,181.66,0.06000001]
[1753959642089,47.57942225,181.67,181.66,0.06000001]
[1753959642884,44.43448615,181.67,181.66,0.06000001]
[1753959647274,48.11470045,181.67,181.66,0.06000001]
[1753959648790,51.25963655,181.67,181.66,0.06000001]
[1753959649487,55.34995147,181.67,181.66,0.06000001]
[1753959655484,52.20501537,181.67,181.66,0.06000001]
[1753959655688,52.22501537,181.67,181.66,0.06000001]
[1753959655891,74.13470045,181.67,181.66,0.06000001]
[1753959656192,48.13470045,181.67,181.66,0.06000001]
[1753959656379,74.13470045,181.67,181.66,0.06000001]
[1753959664084,67.9102143,181.67,181.66,0.06000001]
[1753959664285,64.23,181.67,181.66,0.06000001]
[1753959670101,64.23,181.67,181.66,3.85493611]
[1753959670312,64.23,181.67,181.66,0.71000001]
[1753959670503,64.23,181.67,181.66,3.20493611]
[1753959671729,0.03,181.67,181.66,3.85493611]
[1753959672024,38.23,181.67,181.66,3.85493611]
[1753959673126,38.23,181.67,181.66,9.35972527]
[1753959674122,0.03,181.67,181.66,9.35972527]
[1753959674332,38.21,181.67,181.66,9.35972527]
[1753959678323,38.18,181.68,181.66,9.35972527]
[1753959678499,38.18,181.68,181.67,3.7949361]
[1753959679296,0.03,181.69,181.67,9.29942225]
[1753959679501,38.21,181.69,181.68,0.65]
[1753959679817,38.21,181.69,181.68,3.7949361]
[1753959680218,38.21,181.69,181.68,3.1449361]
[1753959680405,38.21,181.69,181.68,3.7949361]
[1753959680607,38.21,181.69,181.68,9.29911927]
[1753959682023,0.03,181.69,181.68,26.08380324]
[1753959683426,38.18,181.71,181.69,16.78468397]
[1753959683630,38.18,181.71,181.7,16.3746805]
[1753959685810,38.18,181.71,181.7,21.87825782]
[1753959687531,0.69,181.76,181.71,16.78468397]
[1753959687712,0.69,181.76,181.75,3.1449361]
[1753959688033,38.87,181.76,181.75,3.1449361]
[1753959689433,0.69,181.76,181.75,3.1449361]
[1753959689632,38.87,181.76,181.75,3.1449361]
[1753959690317,38.87,181.76,181.71,87.7]
[1753959690516,0.69,181.75,181.67,93.85441274]
[1753959690721,0.69,181.75,181.72,3.1449361]
[1753959691121,26.0,181.74,181.73,3.1449361]
[1753959691414,0.69,181.74,181.73,3.1449361]
[1753959692338,38.87,181.74,181.73,3.1449361]
[1753959693137,38.87,181.74,181.69,0.65]
[1753959693138,44.37236601,181.74,181.72,3.1449361]
[1753959693340,0.69,181.73,181.72,3.1449361]
[1753959693637,0.69,181.73,181.7,3.1449361]
[1753959693836,0.69,181.73,181.71,3.1449361]
[1753959694830,0.69,181.73,181.7,4.91374421]
[1753959695027,0.69,181.73,181.71,4.91374421]
[1753959696337,0.69,181.73,181.72,4.91374421]
[1753959696634,0.69,181.73,181.68,6.1541217]
[1753959696839,0.69,181.73,181.72,4.91374421]
[1753959704742,0.69,181.73,181.71,4.91374421]
[1753959704945,38.87,181.72,181.69,0.65]
[1753959705161,38.87,181.72,181.71,4.91374421]
[1753959705328,38.87,181.72,181.7,4.91374421]
[1753959705643,38.87,181.72,181.67,6.21442295]
[1753959705644,0.69,181.71,181.68,4.91374421]
[1753959705843,38.18,181.7,181.67,0.06]
[1753959706148,0.69,181.69,181.68,4.91374421]
[1753959706526,38.18,181.7,181.68,4.91374421]
[1753959706746,38.87,181.7,181.69,4.91374421]
[1753959706928,38.87,181.7,181.67,0.06]
[1753959707118,38.87,181.7,181.69,4.91374421]
[1753959708343,38.18,181.7,181.69,4.91374421]
[1753959713444,38.84,181.7,181.69,4.91374421]
[1753959716954,38.84,181.7,181.67,6.21448136]
[1753959717150,38.84,181.7,181.69,3.14536834]
[1753959718054,38.18,181.7,181.69,3.14536834]
[1753959719540,38.84,181.7,181.69,3.14536834]
[1753959723668,38.84,181.7,181.69,3.20536834]
[1753959724667,38.18,181.7,181.69,3.20536834]
[1753959725067,38.84,181.7,181.69,3.20536834]
[1753959726146,38.18,181.7,181.69,3.20536834]
[1753959727564,38.18,181.7,181.69,0.06]
[1753959727771,38.18,181.7,181.69,3.20536834]
[1753959728966,38.84,181.7,181.69,0.06]
[1753959729170,38.84,181.7,181.69,3.20536834]
[1753959730049,0.66,181.73,181.69,9.35908459]
[1753959730255,38.18,181.72,181.69,6.21371625]
[1753959730457,38.18,181.72,181.71,3.14536834]
[1753959731962,38.18,181.72,181.71,3.79536834]
[1753959732776,38.18,181.72,181.71,9.29864278]
[1753959734761,38.18,181.72,181.71,8.64864278]
[1753959738063,38.18,181.72,181.71,9.29864278]
[1753959739185,38.18,181.72,181.71,8.64864278]
[1753959744980,38.87,181.72,181.71,3.14536834]
[1753959745179,38.87,181.72,181.7,5.50350694]
[1753959745378,38.18,181.72,181.71,3.14536834]
[1753959746093,38.87,181.72,181.71,3.14536834]
[1753959747377,38.87,181.72,181.71,8.64864278]
[1753959747582,38.18,181.72,181.71,8.64864278]
[1753959749991,38.16,181.72,181.71,9.34864278]
[1753959750800,38.16,181.72,181.71,8.64864278]
[1753959753106,38.16,181.72,181.71,9.34864278]
[1753959755199,38.16,181.72,181.71,8.64864278]
[1753959756210,38.16,181.72,181.71,9.34864278]
[1753959756799,38.16,181.72,181.71,8.64864278]
[1753959758112,38.16,181.72,181.71,9.34864278]
[1753959758309,38.16,181.72,181.71,38.71480011]
[1753959758514,0.03,181.74,181.71,38.71480011]
[1753959758719,0.03,181.74,181.73,3.14536834]
[1753959760104,0.72,181.74,181.73,3.14536834]
[1753959760296,0.03,181.74,181.73,3.14536834]
[1753959761022,0.03,181.74,181.73,8.64803713]
[1753959766414,0.72,181.74,181.72,5.50286621]
[1753959766711,0.72,181.74,181.73,3.14536834]
[1753959767014,0.72,181.74,181.7,5.50357732]
[1753959767220,0.72,181.74,181.73,3.14536834]
[1753959768120,0.72,181.74,181.73,8.64803713]
[1753959768423,0.03,181.74,181.73,8.64803713]
[1753959768920,38.19,181.74,181.73,8.64803713]
[1753959770113,38.19,181.74,181.73,26.1327211]
[1753959770705,38.19,181.74,181.73,25.4327211]
[1753959771216,38.84,181.74,181.71,3.14536834]
[1753959771401,0.65,181.73,181.71,3.14536834]
[1753959771715,0.65,181.73,181.72,3.14536834]
[1753959772025,38.19,181.74,181.72,3.14536834]
[1753959772319,38.19,181.74,181.7,5.50337174]
[1753959772520,0.65,181.73,181.72,3.14536834]
[1753959775929,0.65,181.73,181.72,8.64833994]
[1753959780230,38.19,181.74,181.72,8.64833994]
[1753959780231,38.84,181.74,181.72,8.64833994]
[1753959780430,38.84,181.74,181.73,3.14536834]
[1753959781907,38.84,181.74,181.73,8.64803713]
[1753959782609,38.19,181.74,181.73,8.64803713]
[1753959783539,0.03,181.74,181.73,9.34803713]
[1753959784426,0.03,181.74,181.73,8.64803713]
[1753959785345,0.03,181.74,181.71,87.7]
[1753959785346,0.68,181.74,181.71,87.7]
[1753959785519,0.68,181.74,181.71,90.84536834]
[1753959785708,0.68,181.74,181.71,87.7]
[1753959785909,0.68,181.74,181.71,90.84536834]
[1753959786319,0.68,181.74,181.69,0.06]
[1753959786517,0.68,181.74,181.7,8.64892795]
[1753959786915,0.68,181.74,181.71,3.14536834]
[1753959789045,0.68,181.74,181.71,4.9131971]
[1753959789213,0.68,181.74,181.7,10.41675671]
[1753959789407,5.5931971,181.74,181.69,10.47698331]
[1753959789634,4.9131971,181.72,181.69,0.06]
[1753959789843,4.9131971,181.7,181.69,0.06]
[1753959790024,0.65,181.7,181.69,0.06]
[1753959791333,4.33768996,181.7,181.69,0.06]
[1753959791535,0.65,181.7,181.69,0.06]
[1753959792334,11.06677442,181.7,181.69,0.06]
[1753959792536,14.75090258,181.7,181.69,0.06]
[1753959793436,11.06677442,181.7,181.69,0.06]
[1753959793943,5.5631971,181.7,181.69,0.06]
[1753959795320,11.06677442,181.7,181.69,0.06]
[1753959797740,0.65,181.7,181.69,0.06]
[1753959799028,38.81,181.7,181.69,0.06]
[1753959800153,38.16,181.7,181.69,0.06]
[1753959800650,26.65,181.72,181.69,0.06]
[1753959800851,38.16,181.71,181.69,0.06]
[1753959801531,38.16,181.71,181.69,4.9731971]
[1753959802767,38.86,181.71,181.69,0.06]
[1753959804952,38.16,181.71,181.7,4.9131971]
[1753959806744,38.16,181.71,181.7,11.10677442]
[1753959811843,38.16,181.71,181.7,10.41677442]
[1753959812364,38.19,181.71,181.7,10.41677442]
[1753959813266,38.19,181.71,181.7,11.10677442]
[1753959817066,38.19,181.71,181.7,10.41677442]
[1753959817946,38.89,181.71,181.7,10.41677442]
[1753959821488,38.89,181.71,181.69,87.76]
[1753959821785,38.19,181.71,181.7,4.9131971]
[1753959822279,38.89,181.71,181.7,4.9131971]
[1753959822867,38.89,181.71,181.7,3.14465274]
[1753959823781,38.89,181.71,181.69,0.06]
[1753959823959,38.19,181.71,181.7,3.14465274]
[1753959824663,38.89,181.71,181.7,3.14465274]
[1753959824849,38.89,181.71,181.7,4.9132057]
[1753959828606,38.19,181.71,181.7,10.41678302]
[1753959828756,0.03,181.71,181.7,11.10678302]
[1753959828955,0.03,181.71,181.7,27.89146699]
[1753959829878,0.03,181.71,181.7,32.80467269]
[1753959830687,0.03,181.71,181.7,27.89146699]
[1753959831061,0.03,181.71,181.7,32.80467269]
[1753959832710,0.03,181.71,181.7,27.89146699]
[1753959833709,0.03,181.71,181.7,32.80467269]
[1753959834598,0.03,181.71,181.7,33.35503042]
[1753959835613,0.03,181.73,181.7,71.49503042]
[1753959835819,0.03,181.73,181.72,21.69788967]
[1753959836413,0.03,181.73,181.72,22.41788967]
[1753959836790,0.03,181.73,181.72,22.96818683]
[1753959837206,0.03,181.73,181.72,110.66818683]
[1753959838608,0.03,181.73,181.72,154.31115843]
[1753959838807,0.03,181.73,181.72,153.76086127]
[1753959841807,0.03,181.73,181.72,156.55966056]
[1753959846816,0.03,181.73,181.72,154.78807491]
[1753959853415,0.03,181.74,181.72,154.78807491]
[1753959853617,0.03,181.74,181.73,9.36428884]
[1753959855229,0.03,181.74,181.73,9.91455571]
[1753959857810,0.03,181.74,181.73,97.61455571]
[1753959861026,0.03,181.74,181.73,96.89455571]
[1753959863132,0.03,181.74,181.73,97.57455571]
[1753959863506,0.03,181.74,181.73,96.89455571]
[1753959866302,0.72,181.74,181.73,96.89455571]
[1753959867123,0.03,181.74,181.73,96.89455571]
[1753959868632,0.03,181.74,181.73,97.57455571]
[1753959868817,0.03,181.74,181.73,96.89455571]
[1753959870434,0.72,181.74,181.73,93.75293566]
[1753959870621,0.72,181.74,181.73,113.12897281]
[1753959870931,0.03,181.75,181.73,113.80897281]
[1753959871137,0.03,181.75,181.74,41.26162005]
[1753959871339,0.03,181.75,181.74,46.76398606]
[1753959873037,0.72,181.75,181.74,46.76398606]
[1753959874925,0.03,181.75,181.74,46.76398606]
[1753959875532,0.03,181.75,181.74,134.46398606]
[1753959878042,0.72,181.75,181.74,131.32236601]
[1753959878241,0.72,181.75,181.74,96.34398606]
[1753959878624,0.72,181.75,181.74,93.20236601]
[1753959878824,0.72,181.75,181.74,96.34398606]
[1753959899769,0.72,181.75,181.74,96.40398606]
[1753959900964,3.86162005,181.75,181.74,0.06]
[1753959901153,10.34472005,181.75,181.74,0.06]
[1753959901867,15.84678332,181.75,181.74,0.06]
[1753959902073,19.5360157,181.75,181.74,0.06]
[1753959902444,23.63224285,181.75,181.74,0.06]
[1753959902649,23.63224285,181.75,181.73,0.06]
[1753959902877,13.29157958,181.74,181.73,0.06]
[1753959903094,30.07626355,181.74,181.73,0.06]
[1753959903374,26.0,181.72,181.71,0.06]
[1753959903559,51.61703263,181.72,181.71,0.06]
[1753959903758,56.41807905,181.72,181.71,0.06]
[1753959904347,57.83000423,181.72,181.71,0.06]
[1753959904557,3.14162005,181.7,181.69,0.06]
[1753959904773,41.28162005,181.7,181.69,0.06]
[1753959904995,41.99162005,181.7,181.69,0.06]
[1753959908075,47.49519737,181.7,181.69,0.06]
[1753959913656,3.85162005,181.7,181.69,0.06]
[1753959913858,73.49519737,181.7,181.69,0.06]
[1753959922364,68.11258734,181.7,181.69,0.06]
[1753959932415,42.78468397,181.68,181.66,1e-08]
[1753959932623,84.12630402,181.68,181.66,1e-08]
[1753959932822,90.31048719,181.68,181.66,1e-08]
[1753959932998,90.31048719,181.68,181.67,1e-08]
[1753959932999,92.51732319,181.68,181.67,1e-08]
[1753959934100,96.18066045,181.68,181.67,1e-08]
[1753959935211,100.25285898,181.68,181.67,1e-08]
[1753959935796,16.78468397,181.67,181.66,1e-08]
[1753959936116,26.0,181.6,181.57,0.69]
[1753959936298,26.0,181.6,181.54,1.6408]
[1753959936299,3.14162005,181.58,181.54,1.6408]
[1753959936505,38.22,181.57,181.54,1.6408]
[1753959936888,38.22,181.57,181.55,0.69]
[1753959937106,26.0,181.59,181.55,0.69]
[1753959937317,38.22,181.58,181.55,9.33969697]
[1753959937492,38.22,181.58,181.55,8.64969697]
[1753959937699,38.22,181.58,181.56,0.69]
[1753959939219,41.36162005,181.58,181.56,0.69]
[1753959939713,3.14162005,181.57,181.54,0.69]
[1753959939916,38.22,181.56,181.55,0.69]
[1753959941412,38.22,181.56,181.55,3.83162005]
[1753959941594,38.22,181.56,181.55,0.69]
[1753959944317,38.22,181.56,181.53,0.06]
[1753959944502,42.04162005,181.56,181.53,0.06]
[1753959944817,41.36162005,181.56,181.53,0.06]
[1753959944996,41.36162005,181.56,181.54,0.69]
[1753959945501,46.86944894,181.56,181.53,0.06]
[1753959945704,0.68,181.55,181.53,0.06]
[1753959945901,26.0,181.55,181.53,0.06]
[1753959946105,38.3,181.54,181.53,0.75]
[1753959946302,38.3,181.54,181.53,0.06]
[1753959946709,26.68,181.58,181.53,3.20162005]
[1753959946910,41.44162005,181.57,181.53,0.75]
[1753959947203,38.98,181.57,181.53,0.75]
[1753959947402,42.12162005,181.57,181.53,0.75]
[1753959947993,38.32,181.56,181.54,0.69]
[1753959948416,38.32,181.56,181.53,0.06]
[1753959948417,38.32,181.56,181.53,3.20162005]
[1753959948615,38.32,181.56,181.53,8.71027561]
[1753959948821,3.82162005,181.58,181.54,0.69]
[1753959949131,38.34,181.57,181.54,0.69]
[1753959949920,38.34,181.57,181.54,3.83162005]
[1753959950111,38.34,181.56,181.54,0.69]
[1753959950320,38.34,181.56,181.53,3.20162005]
[1753959950496,39.02,181.56,181.53,3.20162005]
[1753959950701,38.34,181.56,181.53,3.89162005]
[1753959951514,38.34,181.56,181.53,9.40034115]
[1753959951919,38.34,181.56,181.54,3.80162005]
[1753959952114,38.34,181.56,181.54,3.14162005]
[1753959952414,38.34,181.56,181.53,5.5687211]
[1753959952611,38.34,181.56,181.54,3.80162005]
[1753959952819,26.0,181.59,181.55,3.14162005]
[1753959953019,39.01,181.58,181.54,3.14162005]
[1753959953211,0.67,181.57,181.54,3.14162005]
[1753959953520,38.34,181.56,181.54,3.14162005]
[1753959954912,39.01,181.56,181.54,3.14162005]
[1753959955100,39.01,181.56,181.53,0.06]